Cogmind - Beta 11.1 @@@ ROGUE MODE // 2022.05.03 @ 09:48:20 Player: Olga Result: Self-destructed Performance ------------- Evolutions (7) 3500 Regions Visited (12) 2400 Robots Destroyed (2) 10 Value Destroyed (25) 25 Prototype IDs (1) 20 Alien Tech Used (0) 0 Bonus (2113) 2113 TOTAL SCORE: 8068 Bonus ------- Pacifist 1325 Entered DSFs 1000 Friendly Fire -212 Cogmind --------- Core Integrity 1300/1300 Matter 222/300 Energy 150/150 System Corruption 0% Temperature Cool (0) Movement Flying (34) Location -3/Research Parts ------- > --- POWER (1) -------- Micro Antimatter Reactor > --- PROPULSION (6) --- Improved VTOL Module Nuclear Pulse Array > --- UTILITY (12) ----- Advanced Weight Redist. System Enhanced Optical Array Advanced Sensor Array Advanced Signal Interpreter Targeting Computer Improved Hacking Suite Improved Hacking Suite Improved Hacking Suite Improved Corruption Screen Advanced System Restoration Module > --- WEAPON (2) ------- Katana Heavy Pick > --- INVENTORY (5) ---- Long-range Sensor Array Improved Terrain Scanner Advanced Terrain Scan Processor Advanced Terrain Scan Processor Advanced Terrain Scan Processor Peak State ------------ > --- POWER ------------ Micro Antimatter Reactor > --- PROPULSION ------- Improved VTOL Module Nuclear Pulse Array > --- UTILITY ---------- Advanced Weight Redist. System Enhanced Optical Array Advanced Sensor Array Advanced Signal Interpreter Targeting Computer Improved Hacking Suite Improved Hacking Suite Improved Hacking Suite Improved Corruption Screen Advanced System Restoration Module > --- WEAPON ----------- Katana Heavy Pick > --- INVENTORY -------- Long-range Sensor Array Improved Terrain Scanner Advanced Terrain Scan Processor Advanced Terrain Scan Processor Advanced Terrain Scan Processor [Rating: 80] Favorites ----------- Power Micro Nuclear Core Power Core Micro Nuclear Core Reactor Micro Antimatter Reactor Propulsion Improved VTOL Module Flight Unit Improved VTOL Module Utility Improved Hacking Suite Device Advanced Weight Redist. System Processor Targeting Computer Hackware Improved Hacking Suite Protection Propulsion Shielding Weapon Katana Ballistic Gun Light Assault Rifle Slashing Weapon Katana Piercing Weapon Heavy Pick Build | -11 -10 -9 -8 -7 -7 -6 -6 -6 -6 -5 -4 -3 ------- Run | Scr Mat Mat Mat Fac DSF Fac Was Fac DSF Fac Fac Res Slots Evolved 14 | . . 2 2 2 . 2 . . . 2 2 2 Power . | . . . . . . . . . . . . . Propulsion 4 | . . . . . . 2 . . . . 2 . Utility 10 | . . 2 2 2 . . . . . 2 . 2 Weapon . | . . . . . . . . . . . . . Parts Attached 28 | 1 3 . 3 . 1 4 2 3 4 4 1 2 Power 2 | . . . . . . . . 1 . . . 1 Engine . | . . . . . . . . . . . . . Core 1 | . . . . . . . . 1 . . . . Reactor 1 | . . . . . . . . . . . . 1 Propulsion 5 | . . . 2 . 1 . . 1 . 1 . . Treads . | . . . . . . . . . . . . . Leg . | . . . . . . . . . . . . . Wheel . | . . . . . . . . . . . . . Hover . | . . . . . . . . . . . . . Flight 5 | . . . 2 . 1 . . 1 . 1 . . Utility 16 | . 2 . . . . 3 2 1 4 2 1 1 Device 6 | . 1 . . . . . 1 1 1 1 1 . Storage . | . . . . . . . . . . . . . Processor 4 | . 1 . . . . 1 . . . 1 . 1 Hackware 3 | . . . . . . . . . 3 . . . Protection 3 | . . . . . . 2 1 . . . . . Artifact . | . . . . . . . . . . . . . Weapon 5 | 1 1 . 1 . . 1 . . . 1 . . Energy Gun . | . . . . . . . . . . . . . Energy Cannon . | . . . . . . . . . . . . . Ballistic Gun 2 | 1 1 . . . . . . . . . . . Ballistic Cannon . | . . . . . . . . . . . . . Launcher . | . . . . . . . . . . . . . Special Weapon . | . . . . . . . . . . . . . Impact Weapon . | . . . . . . . . . . . . . Slashing Weapon 2 | . . . 1 . . 1 . . . . . . Piercing Weapon 1 | . . . . . . . . . . 1 . . Special Melee Weapon . | . . . . . . . . . . . . . Unidentified Prototypes 1 | . . . 1 . . . . . . . . . Parts Lost 8 | . . . 3 . 1 1 . . . 3 . . Power . | . . . . . . . . . . . . . Propulsion 3 | . . . . . 1 1 . . . 1 . . Utility 3 | . . . 1 . . . . . . 2 . . Weapon 2 | . . . 2 . . . . . . . . . Highest Loss Streak 3 | . . . 3 . 1 1 . . . 2 . . To Critical Strikes . | . . . . . . . . . . . . . Average Slot Usage (%) 55 | . 51 44 39 30 30 39 40 55 68 80 73 67 Core 2 | . . . . . . . . 5 6 5 5 2 Flight 9 | . . . 7 15 15 10 6 12 13 13 10 9 Device 8 | . 12 11 7 . . . 2 9 13 13 15 14 Processor 11 | . 10 11 9 7 7 7 13 13 13 14 15 15 Hackware 5 | . . . . . . . . . 8 17 15 14 Protection 4 | . . . . . . 11 10 6 6 5 . . Ballistic Gun 3 | . 28 22 14 . . . . . . . . . Slashing Weapon 5 | . . . 1 7 7 8 6 6 6 5 5 4 Piercing Weapon 1 | . . . . . . . . . . 2 5 4 Naked Turns . | . . . . . . . . . . . . . Heaviest Build 17 | 1 3 3 4 2 2 6 5 11 12 16 15 17 Greatest Support 33 | 3 3 3 10 10 10 8 5 20 20 33 27 27 Greatest Overweight (x) . | . . . . . . . . . . . . . Average Overweight (x) . | . . . . . . . . . . . . . Largest Inventory Capacity 5 | 5 5 5 5 5 5 5 5 5 5 5 5 5 Average Capacity 5 | 5 5 5 5 5 5 5 5 5 5 5 5 5 Most Carried 5 | . 1 1 3 2 4 5 5 5 5 5 5 5 Average Carried 4 | . . 1 1 2 3 4 5 4 4 5 4 4 Final Capacity 5 | 5 5 5 5 5 5 5 5 5 5 5 5 5 Final Carried 5 | . 1 1 2 2 4 5 5 5 5 5 4 5 Class Distribution -------------------- 48% | Mutant 21% | Hacker-Mutant 17% | Sprinter 7% | Hacker-Sprinter 4% | Hacker-Scout Dominant Class ---------------- Mutant | -10/Materials Mutant | -9/Materials Mutant | -8/Materials Sprinter | -7/Factory Sprinter | -7/DSF Sprinter | -6/Factory Mutant | -6/Waste Mutant | -6/Factory Hacker-Mutant | -6/DSF Hacker-Sprinter | -5/Factory Hacker-Mutant | -4/Factory Hacker-Scout | -3/Research Resources | -11 -10 -9 -8 -7 -7 -6 -6 -6 -6 -5 -4 -3 ----------- Run | Scr Mat Mat Mat Fac DSF Fac Was Fac DSF Fac Fac Res Matter Collected 346 | . . . . . . . 299 20 . 27 . . Remotely . | . . . . . . . . . . . . . Salvage Created 58 | . . . . . . . . 31 . 27 . . Parts 4 | . . . . . . . . 1 . 3 . . Haulers Intercepted . | . . . . . . . . . . . . . Recyclers Shooed . | . . . . . . . . . . . . . Parts Field Recycled . | . . . . . . . . . . . . . Retrieved Matter . | . . . . . . . . . . . . . Parts Self-Destructed . | . . . . . . . . . . . . . Prevented . | . . . . . . . . . . . . . Kills | -11 -10 -9 -8 -7 -7 -6 -6 -6 -6 -5 -4 -3 ------- Run | Scr Mat Mat Mat Fac DSF Fac Was Fac DSF Fac Fac Res Combat Hostiles Destroyed . | . . . . . . . . . . . . . Classes Destroyed 2 | . . . . . . . . 1 . 1 . . Watcher 1 | . . . . . . . . . . 1 . . Wasp 1 | . . . . . . . . 1 . . . . Best Kill Streak 1 | . . . . . . . . . . 1 . . Combat Bots Only . | . . . . . . . . . . . . . Max Kills in Single Turn 1 | . . . . . . . . 1 . 1 . . Gunslinging . | . . . . . . . . . . . . . Exploded . | . . . . . . . . . . . . . Melee . | . . . . . . . . . . . . . Uniques/NPCs Destroyed . | . . . . . . . . . . . . . Combat | -11 -10 -9 -8 -7 -7 -6 -6 -6 -6 -5 -4 -3 -------- Run | Scr Mat Mat Mat Fac DSF Fac Was Fac DSF Fac Fac Res Damage Taken 910 | . 252 . 199 . 20 164 . . 28 247 . . Core 328 | . 130 . 84 . . 63 . . . 51 . . Absorbed by Shields . | . . . . . . . . . . . . . Redirected to Shielding 122 | . . . . . . 30 . . . 92 . . Core Remaining (%) 89 | 100 48 100 84 . 100 . . . 92 94 100 . Volleys Fired . | . . . . . . . . . . . . . Largest . | . . . . . . . . . . . . . Hottest . | . . . . . . . . . . . . . Shots Fired . | . . . . . . . . . . . . . Gun . | . . . . . . . . . . . . . Cannon . | . . . . . . . . . . . . . Launcher . | . . . . . . . . . . . . . Special . | . . . . . . . . . . . . . Kinetic . | . . . . . . . . . . . . . Thermal . | . . . . . . . . . . . . . Explosive . | . . . . . . . . . . . . . Electromagnetic . | . . . . . . . . . . . . . Robot Hit Streak . | . . . . . . . . . . . . . Robot Miss Streak . | . . . . . . . . . . . . . Penetration Max . | . . . . . . . . . . . . . Secondary Targets . | . . . . . . . . . . . . . Shots Hit Robots 3 | . . . . . . . . 2 . 1 . . Core Hits 3 | . 1 . . . . . . 1 . 1 . . Critical Kills . | . . . . . . . . . . . . . Critical Parts Destroyed . | . . . . . . . . . . . . . Critical Strikes . | . . . . . . . . . . . . . Melee Attacks 24 | . . . . . . 3 . 5 . 1 15 . Impact . | . . . . . . . . . . . . . Slashing 12 | . . . . . . 3 . 5 . 1 3 . Piercing 12 | . . . . . . . . . . . 12 . Sneak Attacks 2 | . . . . . . . . 2 . . . . Combat Hostiles . | . . . . . . . . . . . . . Follow-up Attacks . | . . . . . . . . . . . . . Damage Inflicted 170 | . 12 1 . . . . . 112 . 45 . . Guns . | . . . . . . . . . . . . . Cannons . | . . . . . . . . . . . . . Explosions . | . . . . . . . . . . . . . Melee 157 | . . . . . . . . 112 . 45 . . Ramming 13 | . 12 1 . . . . . . . . . . Kinetic . | . . . . . . . . . . . . . Thermal . | . . . . . . . . . . . . . Explosive . | . . . . . . . . . . . . . Electromagnetic . | . . . . . . . . . . . . . Impact . | . . . . . . . . . . . . . Slashing 157 | . . . . . . . . 112 . 45 . . Piercing . | . . . . . . . . . . . . . Highest Corruption 1 | . . . . . . . . 1 1 . . . Average Corruption 1 | . . . . . . . . 1 1 . . . Corruption Purged . | . . . . . . . . . . . . . Corruption Blocked . | . . . . . . . . . . . . . Overload Shots . | . . . . . . . . . . . . . Overflow Damage 28 | . . . . . . . . 28 . . . . Projectiles . | . . . . . . . . . . . . . Explosions . | . . . . . . . . . . . . . Melee 28 | . . . . . . . . 28 . . . . Knockbacks . | . . . . . . . . . . . . . Impact . | . . . . . . . . . . . . . Kinetic . | . . . . . . . . . . . . . Secondary . | . . . . . . . . . . . . . Self-Inflicted Damage 5 | . 5 . . . . . . . . . . . Shots . | . . . . . . . . . . . . . Rammed 4 | . 3 1 . . . . . . . . . . Targets Rammed 4 | . 3 1 . . . . . . . . . . Kicked . | . . . . . . . . . . . . . Crushed . | . . . . . . . . . . . . . Highest Temperature . | . . . . . . . . . . . . . Average Temperature . | . . . . . . . . . . . . . Received Heat Transfer 213 | . 132 . 63 . . 9 . . . 9 . . Siege Activations . | . . . . . . . . . . . . . Robots Corrupted . | . . . . . . . . . . . . . Combat Hostiles . | . . . . . . . . . . . . . Parts Fried . | . . . . . . . . . . . . . Impact Corruptions . | . . . . . . . . . . . . . Robots Melted . | . . . . . . . . . . . . . Combat Hostiles . | . . . . . . . . . . . . . Parts Melted . | . . . . . . . . . . . . . Heat Transferred . | . . . . . . . . . . . . . Parts Sabotaged . | . . . . . . . . . . . . . Parts Stolen . | . . . . . . . . . . . . . Parts Stripped . | . . . . . . . . . . . . . Power Chain Reactions . | . . . . . . . . . . . . . Missiles Intercepted . | . . . . . . . . . . . . . Alert | -11 -10 -9 -8 -7 -7 -6 -6 -6 -6 -5 -4 -3 ------- Run | Scr Mat Mat Mat Fac DSF Fac Was Fac DSF Fac Fac Res Peak Influence 285 | . 25 40 54 63 44 245 85 122 88 285 245 143 Initial 129 | . . 10 16 24 44 17 85 59 88 46 129 128 Average 98 | . 11 26 36 57 41 113 85 83 88 142 188 137 Maximum Alert Level 1 | . . . . . . 1 . . . 1 1 . Low Security (%) 91 | 100 100 100 100 100 100 91 100 100 100 71 70 100 Level 1 8 | . . . . . . 8 . . . 28 29 . Level 2 . | . . . . . . . . . . . . . Level 3 . | . . . . . . . . . . . . . Level 4 . | . . . . . . . . . . . . . Level 5 . | . . . . . . . . . . . . . High Security . | . . . . . . . . . . . . . Max Security . | . . . . . . . . . . . . . Squads Dispatched 13 | . 1 . 2 1 1 . . 1 1 2 3 1 Investigation 3 | . . . . . . . . 1 . 1 1 . Extermination . | . . . . . . . . . . . . . Reinforcement 10 | . 1 . 2 1 1 . . . 1 1 2 1 Assault . | . . . . . . . . . . . . . Garrison . | . . . . . . . . . . . . . Intercept . | . . . . . . . . . . . . . Searches Triggered . | . . . . . . . . . . . . . Construction Impeded . | . . . . . . . . . . . . . Haulers Reinforced . | . . . . . . . . . . . . . Active Scanning Responses . | . . . . . . . . . . . . . Cargo Convoy Interrupts . | . . . . . . . . . . . . . Stealth | -11 -10 -9 -8 -7 -7 -6 -6 -6 -6 -5 -4 -3 --------- Run | Scr Mat Mat Mat Fac DSF Fac Was Fac DSF Fac Fac Res Distress Signals 2 | . . . . . . . . . . 1 1 . Communications Jammed . | . . . . . . . . . . . . . Distress Signals . | . . . . . . . . . . . . . Times Spotted 66 | . 7 1 9 3 4 13 . . 4 19 5 1 Peak Tracking Total 9 | . 6 1 9 2 4 7 . . 4 8 4 1 Tactical Retreats 7 | . . . . . . 3 . . . 2 2 . Traps | -11 -10 -9 -8 -7 -7 -6 -6 -6 -6 -5 -4 -3 ------- Run | Scr Mat Mat Mat Fac DSF Fac Was Fac DSF Fac Fac Res Traps Triggered 5 | . . . . . . 2 . . 3 . . . Indirectly . | . . . . . . . . . . . . . Trap Hack Attempts . | . . . . . . . . . . . . . Triggered . | . . . . . . . . . . . . . Disarmed . | . . . . . . . . . . . . . Reprogrammed . | . . . . . . . . . . . . . Reused . | . . . . . . . . . . . . . Traps Extracted . | . . . . . . . . . . . . . Installed . | . . . . . . . . . . . . . Triggered . | . . . . . . . . . . . . . Machines | -11 -10 -9 -8 -7 -7 -6 -6 -6 -6 -5 -4 -3 ---------- Run | Scr Mat Mat Mat Fac DSF Fac Was Fac DSF Fac Fac Res Machines Disabled . | . . . . . . . . . . . . . Max in Single Turn . | . . . . . . . . . . . . . Machines Sabotaged . | . . . . . . . . . . . . . Garrisons Compromised . | . . . . . . . . . . . . . Overloaded Fab Kills . | . . . . . . . . . . . . . Hacking | -11 -10 -9 -8 -7 -7 -6 -6 -6 -6 -5 -4 -3 --------- Run | Scr Mat Mat Mat Fac DSF Fac Was Fac DSF Fac Fac Res Machines Accessed 15 | . 2 . 1 2 . 3 . 4 . 2 1 . Terminals 12 | . 2 . 1 2 . 3 . 1 . 2 1 . Fabricators . | . . . . . . . . . . . . . Repair Stations 1 | . . . . . . . . 1 . . . . Recycling Units . | . . . . . . . . . . . . . Scanalyzers 2 | . . . . . . . . 2 . . . . Garrison Access . | . . . . . . . . . . . . . Total Hacks 33 | . 6 . 1 3 . 6 . 10 . 4 3 . Successful 21 | . 2 . 1 2 . 5 . 6 . 3 2 . Failed 12 | . 4 . . 1 . 1 . 4 . 1 1 . Catastrophic 1 | . . . . . . . . . . 1 . . Database Lockouts . | . . . . . . . . . . . . . Manual 14 | . 6 . . . . 4 . . . 4 . . Terminals 25 | . 6 . 1 3 . 6 . 2 . 4 3 . Fabricators . | . . . . . . . . . . . . . Repair Stations 2 | . . . . . . . . 2 . . . . Recycling Units . | . . . . . . . . . . . . . Scanalyzers 6 | . . . . . . . . 6 . . . . Garrison Access . | . . . . . . . . . . . . . Terminal Hacks 13 | . 1 . 1 2 . 4 . 1 . 2 2 . Part Schematic 1 | . . . . . . . . . . 1 . . Open DSF 2 | . . . . 1 . . . 1 . . . . Level Access Points 3 | . . . 1 . . . . . . 1 1 . Machine Index 1 | . . . . . . . . . . . 1 . Terminal Index 3 | . 1 . . 1 . 1 . . . . . . Locate Traps 2 | . . . . . . 2 . . . . . . Zone Layout 1 | . . . . . . 1 . . . . . . Fabricator Hacks . | . . . . . . . . . . . . . Repair Station Hacks 2 | . . . . . . . . 2 . . . . Scan Component 1 | . . . . . . . . 1 . . . . Repair 1 | . . . . . . . . 1 . . . . Recycling Unit Hacks . | . . . . . . . . . . . . . Scanalyzer 3 | . . . . . . . . 3 . . . . Insert Component 2 | . . . . . . . . 2 . . . . Analyze 1 | . . . . . . . . 1 . . . . Garrison Access Hacks . | . . . . . . . . . . . . . Unauthorized Hacks 3 | . 1 . . . . 1 . . . 1 . . Terminals 3 | . 1 . . . . 1 . . . 1 . . Botnet 3 | . 1 . . . . 1 . . . 1 . . Fabricators . | . . . . . . . . . . . . . Repair Stations . | . . . . . . . . . . . . . Recycling Units . | . . . . . . . . . . . . . Scanalyzers . | . . . . . . . . . . . . . Garrison Access . | . . . . . . . . . . . . . Data Cores Recovered . | . . . . . . . . . . . . . Used . | . . . . . . . . . . . . . Hacking Detections 12 | . 2 . 1 1 . 2 . 3 . 2 1 . Full Trace Events 3 | . . . . . . . . 1 . 1 1 . Feedback Events 1 | . . . . . . . . 1 . . . . Corruption 1 | . . . . . . . . 1 . . . . Feedback Blocked . | . . . . . . . . . . . . . Robot Schematics Acquired . | . . . . . . . . . . . . . Robots Built . | . . . . . . . . . . . . . Authchips . | . . . . . . . . . . . . . Time . | . . . . . . . . . . . . . Total Robot Build Rating . | . . . . . . . . . . . . . Part Schematics Acquired 2 | . . . . . . . . 1 . 1 . . Parts Built . | . . . . . . . . . . . . . Authchips . | . . . . . . . . . . . . . Time . | . . . . . . . . . . . . . Total Part Build Rating . | . . . . . . . . . . . . . Parts Repaired 1 | . . . . . . . . 1 . . . . Time 30 | . . . . . . . . 30 . . . . Parts Recycled . | . . . . . . . . . . . . . Recycled Matter . | . . . . . . . . . . . . . Retrieved Matter . | . . . . . . . . . . . . . Retrieved Components . | . . . . . . . . . . . . . Parts Scanalyzed 1 | . . . . . . . . 1 . . . . Part Schematics Acquired 1 | . . . . . . . . 1 . . . . Parts Damaged . | . . . . . . . . . . . . . Bothacking | -11 -10 -9 -8 -7 -7 -6 -6 -6 -6 -5 -4 -3 ------------ Run | Scr Mat Mat Mat Fac DSF Fac Was Fac DSF Fac Fac Res Used RIF Installer . | . . . . . . . . . . . . . Robots Hacked . | . . . . . . . . . . . . . Non-combat . | . . . . . . . . . . . . . Combat . | . . . . . . . . . . . . . Robot Hacks Applied . | . . . . . . . . . . . . . Relay Couplers Released . | . . . . . . . . . . . . . Fabnet Peak Effective % . | . . . . . . . . . . . . . Robots Rewired . | . . . . . . . . . . . . . Allies Hacked . | . . . . . . . . . . . . . Hacks Repelled . | . . . . . . . . . . . . . Allies | -11 -10 -9 -8 -7 -7 -6 -6 -6 -6 -5 -4 -3 -------- Run | Scr Mat Mat Mat Fac DSF Fac Was Fac DSF Fac Fac Res Total Allies 20 | . . . . . . . 20 . . . . . Largest Group 20 | . . . . . . . 20 1 . . . . Highest-Rated Group 783 | . . . . . . . 783 25 . . . . Highest-Rated Ally 50 | . . . . . . . 50 25 . . . . Total Orders . | . . . . . . . . . . . . . Ally Attacks . | . . . . . . . . . . . . . Total Damage . | . . . . . . . . . . . . . Kills . | . . . . . . . . . . . . . Allies Corrupted . | . . . . . . . . . . . . . Allies Melted . | . . . . . . . . . . . . . Intel | -11 -10 -9 -8 -7 -7 -6 -6 -6 -6 -5 -4 -3 ------- Run | Scr Mat Mat Mat Fac DSF Fac Was Fac DSF Fac Fac Res Robot Analysis Total . | . . . . . . . . . . . . . Derelict Logs Recovered . | . . . . . . . . . . . . . Drone Launches . | . . . . . . . . . . . . . Drone Recoveries . | . . . . . . . . . . . . . Exploration | -11 -10 -9 -8 -7 -7 -6 -6 -6 -6 -5 -4 -3 ------------- Run | Scr Mat Mat Mat Fac DSF Fac Was Fac DSF Fac Fac Res Turns Passed 1000 | 10 81 45 50 17 14 185 55 178 56 142 84 83 Spaces Moved 2291 | 18 133 86 115 54 32 453 143 408 83 401 137 228 Core 266 | 18 133 86 29 . . . . . . . . . Treads . | . . . . . . . . . . . . . Legs . | . . . . . . . . . . . . . Wheels . | . . . . . . . . . . . . . Hover . | . . . . . . . . . . . . . Flight 2025 | . . . 86 54 32 453 143 408 83 401 137 228 Fastest Speed 32 | 50 50 50 32 32 32 32 35 34 34 32 34 34 Average Speed 35 | 50 50 50 37 32 32 33 35 34 34 33 34 34 Slowest Speed 50 | 50 50 50 50 32 35 35 35 35 34 34 34 34 Overloaded Moves . | . . . . . . . . . . . . . Propulsion Burnouts . | . . . . . . . . . . . . . Robots Hopped 21 | . . . 2 . 2 8 . 1 . 8 . . Cave-ins Triggered . | . . . . . . . . . . . . . Exploration Rate (%) 28 | 3 41 17 23 2 41 19 89 13 91 16 5 6 Regions Visited 12 Branch Regions . Pre-discovered Areas . | . . . . . . . . . . . . . Known Exits Taken 5 | . . . 1 1 . . . 1 . 1 1 . Unknown Exits Taken 3 | 1 1 1 . . . . . . . . . . Scrap Searched . | . . . . . . . . . . . . . Spaces Dug 17 | . . . . . . 2 . 3 . . 12 . Terrain Destroyed 17 | . . . . . . 2 . 3 . . 12 . Melee 17 | . . . . . . 2 . 3 . . 12 . Projectile . | . . . . . . . . . . . . . AOE . | . . . . . . . . . . . . . Terrain Rammed . | . . . . . . . . . . . . . Walls Destroyed . | . . . . . . . . . . . . . Machines Disabled . | . . . . . . . . . . . . . Actions | -11 -10 -9 -8 -7 -7 -6 -6 -6 -6 -5 -4 -3 --------- Run | Scr Mat Mat Mat Fac DSF Fac Was Fac DSF Fac Fac Res Total 2398 | 18 145 87 117 53 32 474 148 437 109 397 149 232 Wait 45 | . 6 1 . . . 18 . 20 . . . . Move 2240 | 17 132 85 110 53 27 439 142 405 82 384 136 228 Hop 19 | . . . 2 . 2 6 . 1 . 8 . . Pick Up 13 | . 1 . 2 . 2 3 1 3 . . . 1 Fast Attach 21 | 1 3 . 2 . 1 2 2 1 3 4 . 2 Attach 7 | . . . 1 . . 2 . 2 1 . 1 . Detach 1 | . . . . . . . . . 1 . . . Swap . | . . . . . . . . . . . . . Drop 5 | . . . . . . 1 3 . . . . 1 Fire . | . . . . . . . . . . . . . Melee 21 | . . . . . . 3 . 5 . 1 12 . Ram 4 | . 3 1 . . . . . . . . . . Kick . | . . . . . . . . . . . . . Crush . | . . . . . . . . . . . . . Escape Stasis 22 | . . . . . . . . . 22 . . . Rewire . | . . . . . . . . . . . . . Trap . | . . . . . . . . . . . . . Miscellaneous . | . . . . . . . . . . . . . Route ------- -11/Scrapyard -10/Materials (discovered 2 exits: [*Mat] / [*Min]) -9/Materials (discovered 2 exits: *Mat / [*Min]) -8/Materials (discovered 3 exits: *Fac x3) -7/Factory -7/DSF -6/Factory -6/Waste -6/Factory -6/DSF -5/Factory (discovered 4 exits: *Fac x4) -4/Factory (discovered 4 exits: *Res x4) -3/Research History --------- Turn | Location | Event 6 | -11/Scrapyard | Discovered new exit (range 12) 11 | -11/Scrapyard | Entered Materials 52 | -10/Materials | Discovered new exit (range 9) 86 | -10/Materials | Discovered new exit (range 14) 88 | -10/Materials | Core integrity fell below 50% 92 | -10/Materials | Entered another Materials area 92 | -9/Materials | Evolved 2 slots: Utility x2 118 | -9/Materials | Discovered new exit (range 8) 130 | -9/Materials | Discovered new exit (range 16) 137 | -9/Materials | Entered another Materials area 137 | -8/Materials | Evolved 2 slots: Utility x2 145 | -8/Materials | Identified exit to Factory 187 | -8/Materials | Entered Factory 187 | -7/Factory | Evolved 2 slots: Utility x2 204 | -7/Factory | Identified exit to DSF 204 | -7/Factory | Entered DSF 207 | -7/DSF | Lost 3 parts (1u2w) 212 | -7/DSF | Discovered new exit (range 11) 218 | -7/DSF | Entered Factory 218 | -6/Factory | Evolved 2 slots: Propulsion x2 403 | -6/Factory | Manually triggered Chute Trap 403 | -6/Factory | Sucked down chute 403 | -6/Factory | Entered Waste 404 | -6/Waste | Joined by Warlord forces that had cleared the area 454 | -6/Waste | Discovered new exit (range 12) 458 | -6/Waste | Entered Factory 458 | -6/Factory | Accompanied by 1 ally 615 | -6/Factory | Build established: Mutant 629 | -6/Factory | Repaired Broken Adv. Terrain Scan Processor 636 | -6/Factory | Identified exit to DSF 636 | -6/Factory | Entered DSF 672 | -6/DSF | Additional patrols routed to DSF 685 | -6/DSF | Discovered new exit (range 22) 692 | -6/DSF | Entered Factory 692 | -5/Factory | Evolved 2 slots: Utility x2 802 | -5/Factory | Identified exit to Factory 834 | -5/Factory | Entered another Factory area 834 | -4/Factory | Evolved 2 slots: Propulsion x2 863 | -4/Factory | Identified exit to Research 918 | -4/Factory | Entered Research 918 | -3/Research | Evolved 2 slots: Utility x2 1001 | -3/Research | Self-destructed Last Messages --------------- Downloaded coordinate data. 00863_ ALERT: Suspicious activity at Terminal F009. Dispatching Investigation squad. 00869_ W-44 Eye sends out distress signal. 00890_ The unstable cave ceiling collapses. 00901_ ALERT: Suspicious intruders detected, dispatching Cutter reinforcements to area. PARAMETERS=UTILITY+2 LOCATION=RESEARCH GOAL=ESCAPE 00948_ O-24 Administrator: "IFF HANDSHAKE FAILED. SECURING TERMINAL." 00948_ ALERT: All DSF locations entering lockdown mode. 00951_ O-24 Administrator uses terminal to summon reinforcements. 00951_ ALERT: Hostiles spotted, dispatching reinforcements to Terminal R002. 00951_ O-24 Administrator locks terminal. 00958_ Acquired Adv. Terrain Scan Processor. 00967_ Dropped Mic. Nuclear Core. 00968_ Acquired Mic. Antimatter Reactor. 00977_ Acquired Adv. Signal Interpreter. Map ----- +----------------------------------------------------+ | ?????????????????????????????????????????????????? | | ?????????????????????????????????????????????????? | | ?????????????????????????????????????????????????? | | ?????????????????????????????????????????????????? | | ?????????????????????????????????????????????????? | | ?????????????????????????????????????????????????? | | ?????????????????????????????????????????????????? | | ?????????????????????????????????????????????????? | | ?????????????????????????????????????????????????? | | ?????????????????????????????????????????????????? | | ?????????????????????????????????????????????????? | | ?????????????????????????????????????????????????? | | ?????????????????????????????????????????????????? | | ?????????????????????????????????????????????????? | | ?????????????????????????????????????????????????? | | ??????????????????????????########???????????????? | | ??????????????????????????# #????????######## | | ??????????????????????????# #??#######* | | ??????????????????????????# #??# # * | | ?????????????????????Y????# #??# # "" | | ??????????????????######### #??# #! "" | | ??????????????????# # ????# # "" | | ??????????????????# ###+####### # "" | | ??????????????????# """ + + # | | ?????????????????R# """ # # # | | ??????????????????# """ @# ############+# | | ??????????????????# """ # | | ??????????????????# """ # | | ??????????????????# """ # ! | | ??????????????????# """ + """ | | ??????????????????# # "T" ########## | | ??????????????????# # " " # # | | ??????????????????######### # # | | ??????????????????# ??????# # + | | ??????????????????# ??????# # # | | ??????????????????# ?????# """ # """ # | | ??????????????????# ?????# o""" # """ ?# | | ??????????????????# "????# """ # """ ?# | | ??????????????????# ????# g g # ??# | | ??????????????????#= ??# g # ??# | | ??????????????????# # g ########## | | ??????????????????#"" + """ | | ??????????????????#"" # """ | | ??????????????????#"" ?# """ ########## | | ??????????????????#G ?# #????????### | | ??????????????????#"" # #??????????? | | ??????????????????#"" # #??????????? | | ??????????????????#"" + """ #??????????? | | ??????????????????# # """ #??????????? | | ??????????????????# # """ ############ | +----------------------------------------------------+ Best States ------------- Heat Dissipation 46 Energy Generation 19 Energy Capacity 150 Matter Stores 300 Matter Capacity 300 Sight Range 22 Robot Scan Range 16 Terrain Scan Density 10 Additional Mass Support 9 Corruption Block 15 Propulsion Shielding 66 Evasion (%) 73 Targeting Accuracy 5 Offensive Hacking 36 Item Schematics ----------------- Adv. Terrain Scan Processor | -6/Factory | Scanalyzed Lrn. Terrain Scanner | -5/Factory | Hacked Robot Schematics ------------------ None Fabricated ------------ Nothing Alien Tech Used ----------------- None Achievements -------------- None Challenges ------------ None Game ------ Seed PoweredNavigationFlamer Manual? 0 Play Time 00:29:28 Cumulative 170.2 hours Start 2022.05.03 @ 09:20:22 End 2022.05.03 @ 09:48:20 Sessions 1 Manual Loads 0 Difficulty Rogue Special Mode None Game No. 288 Rogue 287 Adventurer 0 Explorer 1 Win Type - Total 8 Types 8/0/0/0/0/0/0/0/0 Lore% 61 Gallery% 64 Achievement% 53 Wizard Run 0 Options --------- ASCII 1 Keyboard 0 Movement Vi Keybinds 0 Fullscreen 1 Font 18/SmallcapsGlow Map View 76x50 Tactical HUD 1 Map Filters NONE Filters NONE Steam 1 RUN: be6e4350-d314-48c0-a5f3-b581e305fb5f